lending/lending_fUSD_20251018
["ID","MTS","AMOUNT","RATE_DAILY","PERIOD"]
[391752519,1760777448313,-172.019445,0.00032386,30]
[391752520,1760777448323,-314.779729,0.00032386,30]
[391752521,1760777448333,-172.019445,0.00032386,30]
[391752522,1760777448342,-314.779729,0.00032386,30]
[391752523,1760777448351,-151.0,0.00032386,30]
[391752524,1760777448361,-314.779729,0.00032386,30]
[391752525,1760777448370,-314.779729,0.00032386,30]
[391752526,1760777448379,-323.945293,0.00032386,30]
[391752527,1760777448389,-323.945293,0.00032386,30]
[391752528,1760777448398,-323.945293,0.00032386,30]
[391752529,1760777448407,-323.945293,0.00032386,30]
[391752530,1760777448416,-18690.6997782,0.00032386,2]
[391752531,1760777448425,-151.0,0.00032386,30]
[391752532,1760777448435,-295.95204,0.00032386,30]
[391752533,1760777448444,-153.626116,0.00032386,30]
[391752534,1760777448453,-295.95204,0.00032386,30]
[391752535,1760777448462,-204.299097,0.00032386,30]
[391752536,1760777448472,-295.95204,0.00032386,30]
[391752537,1760777448481,-204.299097,0.00032386,30]
[391752538,1760777448490,-295.95204,0.00032386,30]
[391752539,1760777448499,-204.299097,0.00032386,30]
[391752540,1760777448508,-204.299097,0.00032386,30]
[391752541,1760777448517,-151.0,0.00032386,30]
[391752542,1760777448527,-151.0,0.00032386,30]
[391752543,1760777448537,-151.0,0.00032386,30]
[391752544,1760777448546,-151.0,0.00032386,30]
[391752545,1760777448556,-151.0,0.00032386,30]
[391752546,1760777448566,-151.0,0.00032386,20]
[391752547,1760777448576,-151.0,0.00032386,30]
[391752548,1760777448585,-151.0,0.00032386,20]
[391752549,1760777448594,-235.971768,0.00032386,30]
[391752550,1760777448604,-151.0,0.00032386,30]
[391752551,1760777448613,-235.971768,0.00032386,30]
[391752552,1760777448622,-235.971768,0.00032386,30]
[391752553,1760777448632,-151.0,0.00032386,30]
[391752554,1760777448641,-235.971768,0.00032386,30]
[391752555,1760777448651,-151.0,0.00032386,30]
[391752556,1760777448660,-151.0,0.00032386,30]
[391752557,1760777448669,-151.0,0.00032386,30]
[391752558,1760777448679,-151.0,0.00032386,30]
[391752559,1760777448688,-723.457786,0.00032386,30]
[391752560,1760777448698,-151.543956,0.00032386,30]
[391752561,1760777448707,-151.0,0.00032386,30]
[391752562,1760777448716,-723.457786,0.00032386,30]
[391752563,1760777448726,-723.457786,0.00032386,30]
[391752564,1760777448735,-151.0,0.00032386,30]
[391752565,1760777448745,-151.0,0.00032386,30]
[391752566,1760777448755,-723.457786,0.00032386,30]
[391752567,1760777448764,-151.0,0.00032386,30]
[391752568,1760777448773,-151.0,0.00032386,30]
[391752569,1760777448782,-151.0,0.00032386,30]
[391752570,1760777448791,-151.0,0.00032386,30]
[391752571,1760777448800,-151.0,0.00032386,30]
[391752572,1760777448809,-151.0,0.00032386,30]
[391752573,1760777448818,-151.0,0.00032386,30]
[391752574,1760777448827,-151.0,0.00032386,30]
[391752575,1760777448837,-519.297773,0.00032386,30]
[391752576,1760777448846,-519.297773,0.00032386,30]
[391752577,1760777448856,-519.297773,0.00032386,30]
[391752578,1760777448865,-151.179628,0.00032386,30]
[391752579,1760777448875,-519.297773,0.00032386,30]
[391752580,1760777448884,-388.34915591,0.00032386,2]
[391752581,1760777448894,-302.91714627,0.00032388,57]
[391752582,1760777448903,-151.0,0.0003239,30]
[391752583,1760777448912,-151.0,0.0003239,30]
[391752584,1760777448921,-151.0,0.0003239,30]
[391752585,1760777448930,-151.0,0.0003239,30]
[391752586,1760777448939,-151.0,0.0003239,30]
[391752587,1760777448948,-151.0,0.0003239,30]
[391752588,1760777448957,-151.0,0.0003239,30]
[391752589,1760777448967,-151.0,0.0003239,30]
[391752590,1760777448976,-151.0,0.0003239,30]
[391752591,1760777448984,-151.0,0.0003239,30]
[391752592,1760777448993,-151.0,0.0003239,30]
[391752593,1760777449003,-151.0,0.0003239,30]
[391752594,1760777449012,-151.0,0.0003239,30]
[391752595,1760777449021,-151.435976,0.0003239,30]
[391752596,1760777449030,-151.0,0.0003239,30]
[391752597,1760777449040,-189.086596,0.0003239,30]
[391752598,1760777449050,-151.0,0.0003239,30]
[391752599,1760777449062,-154.08776727,0.0003239,30]
[391752600,1760777449076,-151.0,0.0003239,30]
[391752601,1760777449086,-151.0,0.0003239,30]
[391752602,1760777449095,-151.0,0.0003239,30]
[391752603,1760777449104,-151.0,0.0003239,30]
[391752604,1760777449115,-151.816085,0.0003239,30]
[391752605,1760777449124,-151.0,0.0003239,30]
[391752606,1760777449136,-266.442509,0.0003239,30]
[391752607,1760777449151,-270.62269,0.0003239,30]
[391752608,1760777449161,-151.0,0.0003239,30]
[391752609,1760777449170,-151.0,0.0003239,30]
[391752610,1760777449179,-152.167951,0.0003239,30]
[391752611,1760777449188,-152.804025,0.0003239,30]
[391752612,1760777449199,-151.0,0.0003239,30]
[391752613,1760777449208,-151.0,0.0003239,30]
[391752614,1760777449217,-154.853254,0.0003239,30]
[391752615,1760777449226,-154.853254,0.0003239,30]
[391752616,1760777449237,-154.853254,0.0003239,30]
[391752617,1760777449247,-154.853254,0.0003239,30]
[391752618,1760777449256,-151.0,0.0003239,30]
[391752619,1760777449265,-292.169469,0.0003239,30]
[391752620,1760777449274,-151.0,0.0003239,30]
[391752621,1760777449283,-151.0,0.0003239,30]
[391752622,1760777449292,-151.0,0.0003239,30]
[391752623,1760777449304,-151.0,0.0003239,30]
[391752624,1760777449314,-151.0,0.0003239,30]
[391752625,1760777449323,-151.0,0.0003239,30]
[391752626,1760777449333,-151.0,0.0003239,30]
[391752627,1760777449343,-151.787228,0.0003239,30]
[391752628,1760777449352,-151.0,0.0003239,30]
[391752629,1760777449363,-151.0,0.0003239,30]
[391752630,1760777449373,-151.0,0.0003239,30]
[391752631,1760777449382,-151.0,0.0003239,30]
[391752632,1760777449392,-151.587393,0.0003239,30]
[391752633,1760777449401,-151.0,0.0003239,30]
[391752634,1760777449410,-236.24383,0.0003239,30]
[391752635,1760777449419,-236.24383,0.0003239,30]
[391752636,1760777449428,-236.24383,0.0003239,30]
[391752637,1760777449437,-236.24383,0.0003239,30]
[391752638,1760777449446,-229.713104,0.0003239,30]
[391752639,1760777449455,-151.0,0.0003239,30]
[391752640,1760777449465,-151.0,0.0003239,30]
[391752641,1760777449474,-151.0,0.0003239,30]
[391752642,1760777449483,-151.0,0.0003239,30]
[391752643,1760777449492,-151.0,0.0003239,30]
[391752644,1760777449501,-151.0,0.0003239,30]
[391752645,1760777449511,-151.0,0.0003239,30]
[391752646,1760777449520,-151.0,0.0003239,30]
[391752647,1760777449529,-151.0,0.0003239,30]
[391752648,1760777449538,-151.0,0.0003239,30]
[391752649,1760777449547,-151.0,0.0003239,30]
[391752650,1760777449557,-151.0,0.0003239,30]
[391752651,1760777449566,-151.0,0.0003239,30]
[391752652,1760777449575,-151.0,0.0003239,30]
[391752653,1760777449585,-151.0,0.0003239,30]
[391752654,1760777449594,-151.0,0.0003239,30]
[391752655,1760777449603,-151.0,0.0003239,30]
[391752656,1760777449613,-151.0,0.0003239,30]
[391752657,1760777449622,-151.0,0.0003239,30]
[391752658,1760777449632,-151.0,0.0003239,30]
[391752659,1760777449643,-151.0,0.0003239,30]
[391752660,1760777449652,-151.0,0.0003239,30]
[391752661,1760777449661,-151.0,0.0003239,30]
[391752662,1760777449670,-151.0,0.0003239,30]
[391752663,1760777449680,-238.679233,0.0003239,30]
[391752664,1760777449689,-151.0,0.0003239,30]
[391752665,1760777449698,-151.0,0.0003239,30]
[391752666,1760777449707,-151.0,0.0003239,30]
[391752667,1760777449717,-151.0,0.0003239,30]
[391752668,1760777449726,-151.0,0.0003239,30]
[391752669,1760777449735,-253.062897,0.0003239,30]
[391752670,1760777449745,-151.0,0.0003239,30]
[391752671,1760777449754,-151.0,0.0003239,30]
[391752672,1760777449763,-253.062897,0.0003239,30]
[391752673,1760777449772,-179.868722,0.0003239,30]
[391752674,1760777449781,-151.0,0.0003239,30]
[391752675,1760777449790,-253.062897,0.0003239,30]
[391752676,1760777449799,-179.868722,0.0003239,30]
[391752677,1760777449808,-253.062897,0.0003239,30]
[391752678,1760777449817,-179.868722,0.0003239,30]
[391752679,1760777449826,-179.868722,0.0003239,30]
[391752680,1760777449835,-151.0,0.0003239,30]
[391752681,1760777449845,-151.0,0.0003239,30]
[391752682,1760777449854,-182.053928,0.0003239,30]
[391752683,1760777449863,-217.953037,0.0003239,30]
[391752684,1760777449872,-197.313024,0.0003239,30]
[391752685,1760777449882,-151.0,0.0003239,30]
[391752686,1760777449892,-151.0,0.0003239,30]
[391752687,1760777449901,-197.313024,0.0003239,30]
[391752688,1760777449911,-151.0,0.0003239,30]
[391752689,1760777449921,-151.0,0.0003239,30]
[391752690,1760777449930,-197.313024,0.0003239,30]
[391752691,1760777449939,-151.0,0.0003239,30]
[391752692,1760777449949,-197.313024,0.0003239,30]
[391752693,1760777449958,-151.0,0.0003239,30]
[391752694,1760777449967,-151.0,0.0003239,30]
[391752695,1760777449977,-151.0,0.0003239,30]
[391752696,1760777449985,-151.0,0.0003239,30]
[391752697,1760777449995,-200.30776,0.0003239,30]
[391752698,1760777450004,-151.0,0.0003239,30]
[391752699,1760777450013,-151.0,0.0003239,30]
[391752700,1760777450021,-151.0,0.0003239,30]
[391752701,1760777450031,-151.0,0.0003239,30]
[391752702,1760777450040,-151.0,0.0003239,30]
[391752703,1760777450049,-151.0,0.0003239,30]
[391752704,1760777450058,-151.0,0.0003239,30]
[391752705,1760777450067,-151.0,0.0003239,30]
[391752706,1760777450076,-151.0,0.0003239,30]
[391752707,1760777450085,-151.0,0.0003239,30]
[391752708,1760777450094,-151.0,0.0003239,30]
[391752709,1760777450103,-203.867891,0.0003239,15]
[391752710,1760777450114,-203.867891,0.0003239,15]
[391752711,1760777450123,-203.867891,0.0003239,15]
[391752712,1760777450131,-203.867891,0.0003239,15]
[391752713,1760777450141,-349.202426,0.0003239,30]
[391752714,1760777450150,-349.202426,0.0003239,30]
[391752715,1760777450159,-151.975845,0.0003239,30]
[391752716,1760777450168,-151.0,0.0003239,30]
[391752717,1760777450177,-349.202426,0.0003239,30]
[391752718,1760777450186,-151.0,0.0003239,30]
[391752719,1760777450195,-349.202426,0.0003239,30]
[391752720,1760777450204,-161.378639,0.0003239,30]
[391752721,1760777450213,-158.584333,0.0003239,30]
[391752722,1760777450222,-161.378639,0.0003239,30]
[391752723,1760777450231,-158.584333,0.0003239,30]
[391752724,1760777450240,-161.378639,0.0003239,30]
[391752725,1760777450250,-158.584333,0.0003239,30]
[391752726,1760777450259,-161.378639,0.0003239,30]
[391752727,1760777450268,-158.584333,0.0003239,30]
[391752728,1760777450278,-151.0,0.0003239,30]
[391752729,1760777450287,-163.792378,0.0003239,30]
[391752730,1760777450298,-151.0,0.0003239,30]
[391752731,1760777450311,-151.0,0.0003239,30]
[391752732,1760777450321,-151.0,0.0003239,30]
[391752733,1760777450337,-151.0,0.0003239,30]
[391752734,1760777450350,-151.0,0.0003239,30]
[391752735,1760777450359,-151.0,0.0003239,30]
[391752736,1760777450369,-186.762803,0.0003239,30]
[391752737,1760777450380,-151.0,0.0003239,30]
[391752738,1760777450390,-172.620234,0.0003239,30]
[391752739,1760777450400,-172.620234,0.0003239,30]
[391752740,1760777450409,-247.262232,0.0003239,30]
[391752741,1760777450419,-172.620234,0.0003239,30]
[391752742,1760777450429,-219.437094,0.0003239,30]
[391752743,1760777450439,-172.620234,0.0003239,30]
[391752744,1760777450449,-219.437094,0.0003239,30]
[391752745,1760777450459,-698.576286,0.0003239,30]
[391752746,1760777450469,-219.437094,0.0003239,30]
[391752747,1760777450479,-219.437094,0.0003239,30]
[391752748,1760777450488,-698.576286,0.0003239,30]
[391752749,1760777450498,-1223.827792,0.0003239,30]
[391752750,1760777450507,-151.0,0.0003239,30]
[391752751,1760777450518,-698.576286,0.0003239,30]
[391752752,1760777450528,-1223.827792,0.0003239,30]
[391752753,1760777450538,-151.0,0.0003239,30]
[391752754,1760777450548,-151.0,0.0003239,30]
[391752755,1760777450558,-698.576286,0.0003239,30]
[391752756,1760777450568,-151.0,0.0003239,30]
[391752757,1760777450577,-1223.827792,0.0003239,30]
[391752758,1760777450587,-151.0,0.0003239,30]
[391752759,1760777450597,-151.0,0.0003239,30]
[391752760,1760777450606,-151.0,0.0003239,30]
[391752761,1760777450617,-1223.827792,0.0003239,30]
[391752762,1760777450626,-151.0,0.0003239,30]
[391752763,1760777450636,-261.74598,0.0003239,30]
[391752764,1760777450646,-151.0,0.0003239,30]
[391752765,1760777450656,-151.0,0.0003239,30]
[391752766,1760777450666,-175.808021,0.0003239,30]
[391752767,1760777450676,-151.0,0.0003239,30]
[391752768,1760777450686,-175.808021,0.0003239,30]
[391752769,1760777450696,-151.0,0.0003239,30]
[391752770,1760777450706,-175.808021,0.0003239,30]
[391752771,1760777450716,-175.808021,0.0003239,30]
[391752772,1760777450727,-151.0,0.0003239,30]
[391752773,1760777450736,-151.0,0.0003239,30]
[391752774,1760777450746,-151.0,0.0003239,14]
[391752775,1760777450757,-151.0,0.0003239,30]
[391752776,1760777450768,-151.0,0.0003239,14]
[391752777,1760777450780,-151.0,0.0003239,30]
[391752778,1760777450789,-151.0,0.0003239,30]
[391752779,1760777450799,-254.698706,0.0003239,30]
[391752780,1760777450809,-151.0,0.0003239,30]
[391752781,1760777450819,-151.0,0.0003239,30]
[391752782,1760777450830,-151.0,0.0003239,30]
[391752783,1760777450839,-151.0,0.0003239,30]
[391752784,1760777450848,-442.342863,0.0003239,30]
[391752785,1760777450858,-442.342863,0.0003239,30]
[391752786,1760777450868,-151.0,0.0003239,30]
[391752787,1760777450878,-151.0,0.0003239,30]
[391752788,1760777450888,-442.342863,0.0003239,30]
[391752789,1760777450898,-442.342863,0.0003239,30]
[391752790,1760777450908,-678.418573,0.0003239,30]
[391752791,1760777450918,-678.418573,0.0003239,30]
[391752792,1760777450927,-678.418573,0.0003239,30]
[391752793,1760777450937,-678.418573,0.0003239,30]
[391752794,1760777450946,-582.761147,0.0003239,30]
[391752795,1760777450956,-582.761147,0.0003239,30]
[391752796,1760777450966,-582.761147,0.0003239,30]
[391752797,1760777450975,-582.761147,0.0003239,30]
[391752798,1760777450986,-151.0,0.0003239,30]
[391752799,1760777450995,-151.0,0.0003239,30]
[391752800,1760777451004,-151.0,0.0003239,30]
[391752801,1760777451014,-151.321672,0.0003239,30]
[391752802,1760777451023,-151.0,0.0003239,30]
[391752803,1760777451033,-151.0,0.0003239,30]
[391752804,1760777451042,-298.72888779,0.0003239,30]
[391752805,1760777451052,-4172.38687242,0.0003239,2]
[391752806,1760777451062,-760.818814,0.0003239,30]
[391752807,1760777451071,-760.818814,0.0003239,30]
[391752808,1760777451080,-151.0,0.0003239,30]
[391752809,1760777451089,-285.53547023,0.0003239,30]
[391753021,1760778312740,-197.59720722,0.00013699,2]
[391753028,1760778335952,7230.0,0.00032613,30]
[391753103,1760778598889,-38.95279278,0.00013699,2]
[391753104,1760778598921,-197.59551133,0.00015068,2]
[391753105,1760778598951,-236.55,0.00020187,2]
[391753106,1760778598980,-408.936,0.000215,2]
[391753107,1760778599010,-1034.55339867,0.000218,2]
[391753108,1760778599040,-1034.55339867,0.00022,2]
[391753109,1760778599070,-1034.55339867,0.000222,2]
[391753110,1760778599100,-1034.55339867,0.000224,2]
[391753111,1760778599130,-1034.55339867,0.000226,2]
[391753112,1760778599160,-1200.0,0.00023539,2]
[391753113,1760778599189,-225.0,0.00023539,2]
[391753114,1760778599218,-300.0,0.00023539,2]
[391753115,1760778599247,-500.0,0.0002354,2]
[391753116,1760778599266,-38.95279278,0.0002354,2]
[391753117,1760778599276,-197.59551133,0.0002354,2]
[391753118,1760778599287,-236.55,0.0002354,2]
[391753119,1760778599297,-408.936,0.0002354,2]
[391753120,1760778599309,-1034.55339867,0.0002354,2]
[391753121,1760778599319,-583.41229722,0.0002354,2]
[391753122,1760778599329,-451.14110145,0.00024055,2]
[391753123,1760778599344,-50.85889855,0.00024055,2]
[391753143,1760778631751,-563.90783571,0.00023538,2]
[391753144,1760778631763,-636.09216429,0.00023538,2]
[391753145,1760778631772,-106.72303976,0.0002527,2]
[391753146,1760778631803,-215.76696024,0.0002527,2]
[391753147,1760778631813,-363.16750364,0.0002527,2]
[391753148,1760778631828,-150.0,0.0002527,2]
[391753149,1760778631838,-217.0,0.00025655,2]
[391753150,1760778631847,-236.55,0.00026676,2]
[391753151,1760778631858,-161.0,0.00027,30]
[391753152,1760778631868,-164.57518042,0.00029293,7]
[391753153,1760778631877,-1474.23,0.00030043,2]
[391753154,1760778631887,-144.48882341,0.000308,2]
[391753155,1760778631900,-132.86796711,0.000308,2]
[391753156,1760778631910,-305.31,0.0003082,2]
[391753157,1760778631919,-306.99,0.0003088,2]
[391753158,1760778631929,-69.95118183,0.00030909,2]
[391753159,1760778631940,-300.58008161,0.00030909,2]
[391753160,1760778631951,-358.45521288,0.00030909,2]
[391753161,1760778631963,-4271.01352368,0.00030909,2]
[391753162,1760778631972,-250.0,0.00031276,2]
[391753163,1760778631982,-160.29,0.00031277,2]
[391753164,1760778631991,-184.37,0.00031287,30]
[391753165,1760778632001,-2751.0,0.00031326,120]
[391753166,1760778632011,-292.6,0.00031329,2]
[391753167,1760778632020,-771.93306751,0.00031428,2]
[391753168,1760778632030,-874.94274203,0.00031635,2]
[391753169,1760778632039,-150.0,0.00031676,2]
[391753170,1760778632048,-150.0,0.00031676,2]
[391753171,1760778632058,-168.27,0.00031676,2]
[391753172,1760778632067,-168.27,0.00031676,2]
[391753173,1760778632077,-150.0,0.00031676,2]
[391753174,1760778632088,-168.27,0.00031676,2]
[391753175,1760778632103,-1093.6,0.00031676,2]
[391753176,1760778632112,-168.27,0.00031676,2]
[391753177,1760778632121,-150.0,0.00031676,2]
[391753178,1760778632131,-150.0,0.00031676,2]
[391753179,1760778632140,-413.73,0.00031676,2]
[391753180,1760778632150,-179.83,0.00031676,2]
[391753181,1760778632159,-200.0,0.000317,11]
[391753182,1760778632169,-500.0,0.000318,11]
[391753183,1760778632179,-874.94274203,0.00031819,2]
[391753184,1760778632188,-800.0,0.000319,11]
[391753185,1760778632198,-500.0,0.00032,10]
[391753186,1760778632207,-233.75925743,0.00032,30]
[391753187,1760778632216,-2483.29275936,0.00032034,7]
[391753188,1760778632228,-292.42796134,0.00032034,7]
[391753190,1760778632246,-366.13195705,0.00032034,7]
[391753192,1760778632257,-497.75,0.00032034,7]
[391753195,1760778632376,-276.39732225,0.00032034,7]
[391753196,1760778632386,-946.7203,0.000321,2]
[391753197,1760778632395,-4302.91820074,0.000321,2]
[391753198,1760778632404,-200.0,0.0003213,2]
[391753199,1760778632413,-130.6244336,0.00032131,2]
[391753201,1760778637803,-336.00026839,0.00031874,2]
[391753202,1760778637813,-69.3755664,0.00032131,2]
[391753203,1760778637824,-4302.91820065,0.00032141,2]
[391753204,1760778637834,-874.94274205,0.0003215,2]
[391753205,1760778637844,-485.34,0.00032161,7]
[391753206,1760778637854,-600.0,0.00032161,2]
[391753207,1760778637863,-200.0,0.00032161,2]
[391753208,1760778637873,-1000.0,0.00032161,2]
[391753209,1760778637882,-448.82967414,0.00032161,2]
[391753210,1760778637891,-1000.0,0.00032161,2]
[391753211,1760778637904,-1000.0,0.00032161,2]
[391753212,1760778637913,-1000.0,0.00032161,2]
[391753213,1760778637922,-151.0,0.00032161,2]
[391753214,1760778637933,-1000.0,0.00032161,2]
[391753215,1760778637942,-151.0,0.00032161,2]
[391753216,1760778637951,-1000.0,0.00032161,2]
[391753217,1760778637962,-151.0,0.00032161,2]
[391753218,1760778637971,-1000.0,0.00032161,2]
[391753219,1760778637980,-151.0,0.00032161,2]
[391753220,1760778637989,-1000.0,0.00032161,2]
[391753221,1760778637998,-151.0,0.00032161,2]
[391753222,1760778638007,-1000.0,0.00032161,2]
[391753223,1760778638017,-151.0,0.00032161,2]
[391753224,1760778638026,-1000.0,0.00032161,2]
[391753225,1760778638036,-1000.0,0.00032161,2]
[391753226,1760778638045,-151.0,0.00032161,2]
[391753227,1760778638055,-151.0,0.00032161,2]
[391753228,1760778638065,-151.0,0.00032161,2]
[391753229,1760778638074,-151.0,0.00032161,2]
[391753230,1760778638084,-151.0,0.00032161,2]
[391753231,1760778638094,-1000.0,0.00032161,2]
[391753232,1760778638103,-151.0,0.00032161,2]
[391753233,1760778638112,-1000.0,0.00032161,2]
[391753234,1760778638122,-151.0,0.00032161,2]
[391753235,1760778638131,-151.0,0.00032161,2]
[391753236,1760778638140,-1000.0,0.00032161,2]
[391753237,1760778638150,-204.0900688,0.00032161,2]
[391753238,1760778638159,-1000.0,0.00032161,2]
[391753239,1760778638168,-1000.0,0.00032161,2]
[391753240,1760778638178,-1000.0,0.00032161,2]
[391753241,1760778638196,-1000.0,0.00032161,2]
[391753242,1760778638205,-1000.0,0.00032161,2]
[391753243,1760778638214,-200.0,0.00032161,2]
[391753244,1760778638224,-1000.0,0.00032161,2]
[391753245,1760778638233,-322.6107,0.00032161,2]
[391753246,1760778638242,-1000.0,0.00032161,2]
[391753247,1760778638254,-151.0,0.00032161,2]
[391753248,1760778638268,-1000.0,0.00032161,2]
[391753249,1760778638277,-151.0,0.00032161,2]
[391753250,1760778638287,-151.0,0.00032161,2]
[391753251,1760778638296,-151.0,0.00032161,2]
[391753252,1760778638305,-151.0,0.00032161,2]
[391753253,1760778638314,-250.0,0.00032161,2]
[391753254,1760778638323,-151.0,0.00032161,2]
[391753255,1760778638332,-250.0,0.00032161,2]
[391753256,1760778638341,-151.0,0.00032161,2]
[391753257,1760778638350,-250.0,0.00032161,2]
[391753258,1760778638359,-151.0,0.00032161,2]
[391753259,1760778638368,-250.0,0.00032161,2]
[391753260,1760778638377,-151.0,0.00032161,2]
[391753261,1760778638386,-250.0,0.00032161,2]
[391753262,1760778638395,-151.0,0.00032161,2]
[391753263,1760778638404,-250.0,0.00032161,2]
[391753264,1760778638416,-151.0,0.00032161,2]
[391753265,1760778638425,-250.0,0.00032161,2]
[391753266,1760778638435,-250.0,0.00032161,2]
[391753267,1760778638445,-250.0,0.00032161,2]
[391753268,1760778638455,-250.0,0.00032161,2]
[391753269,1760778638464,-250.0,0.00032161,2]
[391753270,1760778638474,-287.61899177,0.00032169,2]
[391753271,1760778638483,-502.80221331,0.00032173,5]
[391753272,1760778638492,-181.615,0.00032173,31]
[391753273,1760778638501,-1087.035,0.00032173,31]
[391753274,1760778638510,-201.68175415,0.00032181,2]
[391753275,1760778638520,-202.16029931,0.00032181,2]
[391753276,1760778638529,-150.0,0.00032181,2]
[391753277,1760778638538,-150.51054015,0.00032181,2]
[391753278,1760778638547,-192.5778253,0.00032181,2]
[391753279,1760778638557,-150.0,0.00032181,2]
[391753280,1760778638566,-150.0,0.00032181,2]
[391753281,1760778638577,-150.0,0.00032181,2]
[391753282,1760778638586,-150.0,0.00032181,2]
[391753283,1760778638595,-223.62272266,0.00032181,2]
[391753284,1760778638605,-150.0,0.00032181,2]
[391753285,1760778638615,-150.0,0.00032181,2]
[391753286,1760778638624,-500.0,0.00032181,2]
[391753287,1760778638633,-150.0,0.00032181,2]
[391753288,1760778638642,-150.0,0.00032181,2]
[391753289,1760778638652,-150.0,0.00032181,2]
[391753290,1760778638661,-150.80743741,0.00032181,2]
[391753291,1760778638671,-150.49602682,0.00032181,2]
[391753292,1760778638684,-150.0,0.00032181,2]
[391753293,1760778638693,-150.71986668,0.00032181,2]
[391753294,1760778638703,-150.0,0.00032181,2]
[391753295,1760778638712,-500.0,0.00032181,2]
[391753296,1760778638722,-150.72713097,0.00032181,2]
[391753297,1760778638731,-150.0,0.00032181,2]
[391753298,1760778638740,-150.0,0.00032181,2]
[391753299,1760778638750,-150.0,0.00032181,2]
[391753300,1760778638759,-150.0,0.00032181,2]
[391753301,1760778638769,-500.0,0.00032181,2]
[391753302,1760778638779,-150.0,0.00032181,2]
[391753303,1760778638788,-150.0,0.00032181,2]
[391753304,1760778638797,-150.0,0.00032181,2]
[391753305,1760778638807,-4302.91820065,0.00032181,2]
[391753306,1760778638816,-1000.0,0.0003219,2]
[391753307,1760778638830,-151.0,0.00032197,7]
[391753308,1760778638839,-4471.8665325,0.00032199,2]
[391753310,1760778639800,-3548.66953136,0.00032199,2]
[391753311,1760778639810,-500.0,0.00032199,2]
[391753312,1760778639819,-500.0,0.00032199,2]
[391753313,1760778639834,-500.0,0.00032199,2]
[391753314,1760778639844,-615.14708143,0.00032199,2]
[391753315,1760778639854,-4746.18338671,0.000322,2]
[391753316,1760778639867,-38513.57272821,0.000322,2]
[391753317,1760778639878,-9104.35848126,0.000322,2]
[391753318,1760778639889,-4827.5317327,0.000322,2]
[391753319,1760778639902,-500.0,0.000322,2]
[391753320,1760778639914,-1210.64948679,0.000322,2]
[391753321,1760778639964,-521.4885805,0.000322,2]
[391753322,1760778639975,-325.70091321,0.000322,2]
[391753323,1760778640023,-120239.52509062,0.000322,2]
[391753324,1760778640033,-1645.06318911,0.000322,2]
[391753325,1760778640043,-4302.91820065,0.00032222,2]
[391753326,1760778640053,-202.13446032,0.00032236,2]
[391753327,1760778640062,-150.0,0.00032236,2]
[391753328,1760778640071,-150.0,0.00032236,2]
[391753329,1760778640081,-150.0,0.00032236,2]
[391753330,1760778640090,-150.0,0.00032236,2]
[391753331,1760778640099,-500.0,0.00032236,2]
[391753332,1760778640108,-150.0,0.00032236,2]
[391753333,1760778640118,-150.0,0.00032236,2]
[391753334,1760778640127,-150.0,0.00032236,2]